Cogmind - Beta 17.1 @@@ ROGUE MODE // 2026.09.02 @ 09:43:08 Player: Somberlain Result: Destroyed by Y-45 Defender with Beam Rifle Performance ------------- Evolutions (1) 500 Regions Visited (4) 800 Robots Destroyed (14) 70 Value Destroyed (427) 427 Prototype IDs (0) 0 Alien Tech Used (0) 0 Bonus (0) 0 TOTAL SCORE: 1797 Bonus ------- None Cogmind --------- Core Integrity 0/400 Matter 170/300 Energy 74/100 System Corruption 0% Temperature Cool (9) Movement Core (50) Location -9/Storage Parts ------- > --- POWER (1) -------- (None) > --- PROPULSION (2) --- (None) > --- UTILITY (4) ------ (None) > --- WEAPON (2) ------- Maul > --- INVENTORY (5) ---- Deuterium Engine Improved Aluminum Leg Weight Redist. System Minigun Minigun Peak State ------------ > --- POWER ------------ Deuterium Engine > --- PROPULSION ------- Improved Treads > --- UTILITY ---------- Cooling System > --- WEAPON ----------- Minigun Minigun > --- INVENTORY -------- Improved Aluminum Leg Weight Redist. System Minigun Minigun [Rating: 14] Favorites ----------- Power Light Ion Engine Engine Light Ion Engine Power Core Light Nuclear Core Propulsion Aluminum Leg Treads Improved Treads Leg Aluminum Leg Utility Small Storage Unit Device Improved Heat Sink Storage Small Storage Unit Weapon Light Assault Rifle Ballistic Gun Light Assault Rifle Impact Weapon Maul Build | -11 -10 -10 -9 -9 ------- Run | Yrd Mat Min Mat Sto Slots Evolved 2 | . . . 2 . Power . | . . . . . Propulsion . | . . . . . Utility 2 | . . . 2 . Weapon . | . . . . . Parts Attached 17 | 6 . 4 1 6 Power 4 | 1 . 1 1 1 Engine 3 | 1 . 1 . 1 Core 1 | . . . 1 . Reactor . | . . . . . Propulsion 5 | 2 . 2 . 1 Treads 1 | . . . . 1 Leg 4 | 2 . 2 . . Wheel . | . . . . . Hover . | . . . . . Flight . | . . . . . Utility 3 | 1 . 1 . 1 Device 2 | . . 1 . 1 Storage 1 | 1 . . . . Processor . | . . . . . Hackware . | . . . . . Protection . | . . . . . Artifact . | . . . . . Weapon 5 | 2 . . . 3 Energy Gun . | . . . . . Energy Cannon . | . . . . . Ballistic Gun 4 | 2 . . . 2 Ballistic Cannon . | . . . . . Launcher . | . . . . . Special Weapon . | . . . . . Impact Weapon 1 | . . . . 1 Slashing Weapon . | . . . . . Piercing Weapon . | . . . . . Special Melee Weapon . | . . . . . Unidentified Prototypes . | . . . . . Parts Lost 6 | . . 4 . 2 Power 1 | . . 1 . . Propulsion 1 | . . 1 . . Utility . | . . . . . Weapon 4 | . . 2 . 2 Highest Loss Streak 2 | . . 2 . 2 To Critical Strikes . | . . . . . Average Backups 3 | . . 4 4 3 Power . | . . . 1 . Propulsion 1 | . . 2 1 . Utility . | . . 1 1 . Weapon . | . . . . 2 Tool/Special . | . . . . . Unused Backups 7 | . . 2 1 4 Power . | . . . . . Propulsion 3 | . . 2 . 1 Utility 2 | . . . 1 1 Weapon 2 | . . . . 2 Tool/Special . | . . . . . Average Slot Usage (%) 55 | . 85 72 21 33 Engine 5 | . 14 1 2 6 Treads 1 | . . . . 6 Leg 15 | . 28 26 6 . Device 6 | . . 10 4 8 Storage 8 | . 14 14 5 . Ballistic Gun 15 | . 28 19 . 12 Peak Build Rating 14 | 6 6 8 9 14 Average Rating 6 | 4 6 6 3 9 On Entrance 3 | . 6 6 6 1 Avg Prop Armor Cover (%) . | . . . . . Naked Turns 74 | . . . 53 21 Heaviest Build 17 | 10 10 12 11 17 Greatest Support 23 | 20 20 20 20 23 Greatest Overweight (x) 1 | . . 1 1 . Average Overweight (x) . | . . . . . Largest Inventory Capacity 8 | 8 8 8 8 5 Average Capacity 6 | 6 8 8 6 5 Most Carried 8 | . 3 7 8 5 Average Carried 3 | . . 4 4 3 Final Capacity 8 | 8 8 8 5 5 Final Carried 5 | . 3 4 5 5 Class Distribution -------------------- 100% | Mutant Dominant Class ---------------- Mutant | -10/Materials Mutant | -10/Mines Mutant | -9/Materials Mutant | -9/Storage Resources | -11 -10 -10 -9 -9 ----------- Run | Yrd Mat Min Mat Sto Matter Collected 553 | 231 50 183 . 89 Remotely . | . . . . . Salvage Created 612 | . 84 331 . 197 Parts 31 | . 8 14 . 9 Haulers Intercepted . | . . . . . Recyclers Shooed . | . . . . . Parts Field Recycled . | . . . . . Retrieved Matter . | . . . . . Parts Self-Destructed . | . . . . . Prevented . | . . . . . Parts Restored . | . . . . . Kills | -11 -10 -10 -9 -9 ------- Run | Yrd Mat Min Mat Sto Combat Hostiles Destroyed 13 | . 4 5 . 4 Guns 13 | . 4 5 . 4 Classes Destroyed 4 | . 2 1 . 1 Recycler 1 | . . 1 . . Swarmer 3 | . 3 . . . Grunt 9 | . 1 5 . 3 Brawler 1 | . . . . 1 Best Kill Streak 4 | . 2 3 . 4 Combat Bots Only 4 | . 2 2 . 4 Max Kills in Single Turn 2 | . 1 1 . 2 Gunslinging 1 | . . . . 1 Exploded . | . . . . . Melee . | . . . . . Uniques/NPCs Destroyed . | . . . . . Combat | -11 -10 -10 -9 -9 -------- Run | Yrd Mat Min Mat Sto Hostile Shots Fired 201 | . 37 60 37 67 Missed 66 | . 11 18 14 23 Hits 135 | . 26 42 23 44 Projectile 135 | . 26 42 23 44 Critical Strikes 1 | . 1 . . . Damage Taken 1635 | . 230 543 325 537 Core 627 | . 65 156 251 155 Absorbed by Shields . | . . . . . Core Remaining (%) 55 | 100 . 11 . . Volleys Fired 72 | . 16 37 . 19 Largest 2 | . 2 2 . 2 Hottest 50 | . 40 40 . 50 Shots Fired 120 | . 32 52 . 36 Gun 120 | . 32 52 . 36 Cannon . | . . . . . Launcher . | . . . . . Special . | . . . . . Kinetic 120 | . 32 52 . 36 Thermal . | . . . . . Explosive . | . . . . . Electromagnetic . | . . . . . Robot Hit Streak 12 | . 7 12 . 7 Robot Miss Streak 5 | . 5 2 . 2 Penetration Max . | . . . . . Secondary Targets 2 | . . 1 . 1 Max Gunslinging Chain 1 | . . 1 . 1 Shots Hit Robots 70 | . 18 38 . 14 Core Hits 31 | . 8 18 . 5 Critical Kills 1 | . . 1 . . Critical Parts Destroyed 1 | . . 1 . . Critical Strikes 2 | . . 2 . . Destroy 2 | . . 2 . . Melee Attacks . | . . . . . Impact . | . . . . . Slashing . | . . . . . Piercing . | . . . . . Sneak Attacks . | . . . . . Combat Hostiles . | . . . . . Follow-up Attacks . | . . . . . Damage Inflicted 756 | . 152 319 21 264 Guns 731 | . 151 316 . 264 Cannons . | . . . . . Explosions . | . . . . . Melee . | . . . . . Ramming 25 | . 1 3 21 . Kinetic 731 | . 151 316 . 264 Thermal . | . . . . . Explosive . | . . . . . Electromagnetic . | . . . . . Impact . | . . . . . Slashing . | . . . . . Piercing . | . . . . . Highest Corruption . | . . . . . Average Corruption . | . . . . . Corruption Purged . | . . . . . Corruption Blocked . | . . . . . Overload Shots . | . . . . . Overflow Damage . | . . . . . Projectiles . | . . . . . Explosions . | . . . . . Melee . | . . . . . Knockbacks . | . . . . . Impact . | . . . . . Kinetic . | . . . . . Secondary . | . . . . . Self-Inflicted Damage 10 | . . . 10 . Shots . | . . . . . Rammed 2 | . . . 2 . Targets Rammed 4 | . 1 1 2 . Kicked 2 | . 1 1 . . Crushed . | . . . . . Highest Temperature 12 | . 12 9 . 2 Average Temperature 5 | . 8 2 . 2 Received Heat Transfer 735 | . 24 312 126 273 Siege Activations . | . . . . . Martial Activations . | . . . . . Shielding Activations . | . . . . . Robots Disrupted . | . . . . . Combat Hostiles . | . . . . . Robots Corrupted . | . . . . . Combat Hostiles . | . . . . . Parts Fried . | . . . . . Impact Corruptions . | . . . . . Robots Melted . | . . . . . Combat Hostiles . | . . . . . Parts Melted . | . . . . . Heat Transferred . | . . . . . Parts Sabotaged . | . . . . . Parts Stolen . | . . . . . Parts Stripped . | . . . . . Power Chain Reactions . | . . . . . Alert | -11 -10 -10 -9 -9 ------- Run | Yrd Mat Min Mat Sto Maximum Alert Level . | . . . . . Low Security (%) 100 | 100 100 100 100 100 Level 1 . | . . . . . Level 2 . | . . . . . Level 3 . | . . . . . Level 4 . | . . . . . Level 5 . | . . . . . High Security . | . . . . . Max Security . | . . . . . Peak Influence 72 | . 60 50 70 72 Initial 25 | . . 15 . 25 Average 25 | . 34 25 27 26 Influence Increases 422 | . 90 125 90 117 Destroy 0b10 Robot/C 260 | . 80 100 . 80 Destroy 0b10 Robot/NC 5 | . . 5 . . Destroy Leader 50 | . 10 20 . 20 Disable Machine 15 | . . . . 15 Destroy Structure 2 | . . . . 2 Partial Spotted 15 | . . . 15 . Lose Combat Pursuer 75 | . . . 75 . Influence Decreases 380 | . 50 165 30 135 Entered New Map 60 | . . 25 . 35 Time Decay 270 | . 50 110 30 80 Lost Part 50 | . . 30 . 20 Squads Dispatched 2 | . . . 1 1 Investigation . | . . . . . Extermination . | . . . . . Reinforcement 2 | . . . 1 1 Assault . | . . . . . Garrison . | . . . . . Intercept . | . . . . . Searches Triggered . | . . . . . Construction Impeded . | . . . . . Haulers Reinforced . | . . . . . Active Scanning Responses . | . . . . . Cargo Convoy Interrupts . | . . . . . Stealth | -11 -10 -10 -9 -9 --------- Run | Yrd Mat Min Mat Sto Distress Signals 2 | . 1 . 1 . Communications Jammed . | . . . . . Distress Signals . | . . . . . Times Spotted 35 | . 7 6 13 9 Peak Tracking Total 7 | . 3 2 6 7 Tactical Retreats 2 | . . . 2 . Traps | -11 -10 -10 -9 -9 ------- Run | Yrd Mat Min Mat Sto Traps Triggered . | . . . . . Indirectly . | . . . . . Trap Hack Attempts . | . . . . . Triggered . | . . . . . Disarmed . | . . . . . Reprogrammed . | . . . . . Reused . | . . . . . Traps Extracted . | . . . . . Installed . | . . . . . Triggered . | . . . . . Machines | -11 -10 -10 -9 -9 ---------- Run | Yrd Mat Min Mat Sto Machines Disabled 1 | . . . . 1 Max in Single Turn 1 | . . . . 1 Machines Repaired . | . . . . . Machines Dismantled . | . . . . . Machines Sabotaged . | . . . . . Overloaded Fab Kills . | . . . . . Hacking | -11 -10 -10 -9 -9 --------- Run | Yrd Mat Min Mat Sto Machines Accessed 2 | . . . . 2 Terminals 2 | . . . . 2 Fabricators . | . . . . . Repair Stations . | . . . . . Recycling Units . | . . . . . Scanalyzers . | . . . . . Garrison Access . | . . . . . Total Hacks 3 | . . . . 3 Successful 2 | . . . . 2 Failed 1 | . . . . 1 Catastrophic . | . . . . . Database Lockouts . | . . . . . Manual . | . . . . . Terminals 3 | . . . . 3 Fabricators . | . . . . . Repair Stations . | . . . . . Recycling Units . | . . . . . Scanalyzers . | . . . . . Garrison Access . | . . . . . Terminal Hacks 2 | . . . . 2 Open Door 2 | . . . . 2 Fabricator Hacks . | . . . . . Repair Station Hacks . | . . . . . Recycling Unit Hacks . | . . . . . Scanalyzer . | . . . . . Garrison Access Hacks . | . . . . . Unauthorized Hacks . | . . . . . Terminals . | . . . . . Fabricators . | . . . . . Repair Stations . | . . . . . Recycling Units . | . . . . . Scanalyzers . | . . . . . Garrison Access . | . . . . . Data Cores Recovered . | . . . . . Used . | . . . . . Hacking Detections . | . . . . . Full Trace Events . | . . . . . Feedback Events . | . . . . . Feedback Blocked . | . . . . . Robot Schematics Acquired . | . . . . . Robots Built . | . . . . . Authchips . | . . . . . Time . | . . . . . Total Robot Build Rating . | . . . . . Part Schematics Acquired . | . . . . . Parts Built . | . . . . . Authchips . | . . . . . Time . | . . . . . Total Part Build Rating . | . . . . . Part Studies Acquired . | . . . . . Parts Repaired . | . . . . . Time . | . . . . . Parts Recycled . | . . . . . Recycled Matter . | . . . . . Retrieved Matter . | . . . . . Retrieved Components . | . . . . . Parts Scanalyzed . | . . . . . Part Schematics Acquired . | . . . . . Parts Damaged . | . . . . . Bothacking | -11 -10 -10 -9 -9 ------------ Run | Yrd Mat Min Mat Sto Used RIF Installer . | . . . . . Robots Hacked . | . . . . . Non-combat . | . . . . . Combat . | . . . . . Robot Hacks Applied . | . . . . . Relay Couplers Released . | . . . . . Fabnet Peak Effective % . | . . . . . Robots Rewired . | . . . . . Allies Hacked . | . . . . . Hacks Repelled . | . . . . . Allies | -11 -10 -10 -9 -9 -------- Run | Yrd Mat Min Mat Sto Total Allies . | . . . . . Largest Group . | . . . . . Highest-Rated Group . | . . . . . Highest-Rated Ally . | . . . . . Total Orders . | . . . . . Ally Attacks . | . . . . . Total Damage . | . . . . . Kills . | . . . . . Allies Corrupted . | . . . . . Allies Melted . | . . . . . Intel | -11 -10 -10 -9 -9 ------- Run | Yrd Mat Min Mat Sto Active Infowar (turns) . | . . . . . Robot Analysis Total . | . . . . . Derelict Logs Recovered . | . . . . . Drone Launches . | . . . . . Drone Recoveries . | . . . . . Exploration | -11 -10 -10 -9 -9 ------------- Run | Yrd Mat Min Mat Sto Turns Passed 707 | 53 132 231 110 181 Spaces Moved 456 | 38 68 70 126 154 Core 216 | 1 . . 101 114 Treads 40 | . . . . 40 Legs 200 | 37 68 70 25 . Wheels . | . . . . . Hover . | . . . . . Flight . | . . . . . Fastest Speed 50 | 50 120 120 50 50 Average Speed 93 | 118 120 131 70 78 Slowest Speed 190 | 120 120 190 190 160 Overloaded Moves . | . . . . . Propulsion Burnouts . | . . . . . Robots Hopped . | . . . . . Potential Cave-ins . | . . . . . Cave-ins Triggered . | . . . . . Exploration Rate (%) 15 | 3 16 20 17 22 Regions Visited 4 Branch Regions 2 Pre-discovered Areas . | . . . . . Known Exits Taken . | . . . . . Unknown Exits Taken 4 | 1 1 1 1 . Scrap Searched . | . . . . . Spaces Dug . | . . . . . Terrain Destroyed . | . . . . . Melee . | . . . . . Projectile . | . . . . . AOE . | . . . . . Terrain Rammed . | . . . . . Walls Destroyed . | . . . . . Machines Disabled . | . . . . . Actions | -11 -10 -10 -9 -9 --------- Run | Yrd Mat Min Mat Sto Total 638 | 43 92 167 151 185 Wait 62 | . 5 52 4 1 Move 452 | 37 67 69 125 154 Hop . | . . . . . Pick Up 13 | . 3 2 6 2 Fast Attach 10 | 6 . 1 . 3 Attach 6 | . . 1 2 3 Detach 3 | . . . 2 1 Swap 3 | . . 2 1 . Drop 13 | . . 2 9 2 Fire 72 | . 16 37 . 19 Melee . | . . . . . Ram 2 | . . . 2 . Kick 2 | . 1 1 . . Crush . | . . . . . Escape Stasis . | . . . . . Rewire . | . . . . . Trap . | . . . . . Miscellaneous . | . . . . . Route ------- -11/Scrapyard -10/Materials -10/Mines -9/Materials -9/Storage History --------- Turn | Location | Event 5 | -11/Scrapyard | Discovered new exit (range 16) 54 | -11/Scrapyard | Entered Materials 133 | -10/Materials | Discovered new exit (range 14) 186 | -10/Materials | Entered Mines 291 | -10/Mines | Core integrity fell below 50% 311 | -10/Mines | Excavation squad dispatched 311 | -10/Mines | A large section of the Mines collapsed 311 | -10/Mines | Build established: Mutant 399 | -10/Mines | Discovered new exit (range 8) 413 | -10/Mines | Core integrity fell below 20% 417 | -10/Mines | Entered Materials 417 | -9/Materials | Evolved 2 slots: Utility x2 521 | -9/Materials | Discovered new exit (range 13) 523 | -9/Materials | Core integrity fell below 50% 527 | -9/Materials | Entered Storage 657 | -9/Storage | Core integrity fell below 20% 708 | -9/Storage | Destroyed by Y-45 Defender with Beam Rifle Last Messages --------------- 00662_ Destroyed Lgt. Nuclear Core. 00664_ U-05 Engineer builds a Door. 00665_ K-01 Serf collects debris. 00665_ G-47 Trooper destroyed. 00665_ Switching to secondary target: G-34 Mercenary. 00665_ G-34 Mercenary destroyed. 00665_ Minigun destroyed. 00666_ Acquired 39 matter. 00668_ K-01 Serf collects debris. 00669_ Dropped Imp. Treads. 00687_ Connecting with Door Terminal... 00687_ Current location identified: Storage >>Open(Door) Sealed Heavy Doors opened. 00702_ Connecting with Door Terminal... >>Open(Door) Sealed Heavy Doors opened. 00705_ Dropped Cooling System. 00706_ Acquired Maul. Map ----- +----------------------------------------------------+ | | | | | | | | | | | | | | | | | ?????????????????????????????????????????????????? | | ?????????????????????????????????????????????????? | | ?????????????????????????????????????????????????? | | ???????????????????????????????????????????####### | | ???????????????????????????????????????????# #!![ | | ############################################ [ | | # [ | | + | | ##T# ]] | | ########## ################# ######### #?##??? | | #?????# # ##?#### #???????# #?????? | | "" #?????# # """ # # #########+#####?? | | "" #?????# = # "!"" " # """ # # [ #?? | | "" ####### = # " "" " # """ # # ! #?? | | + *// " "" " / """ + + #?? | | # !*%# " ""!" # """ # # ! #?? | | # %=%[# """ # """ # # #?? | | + == " # @ ! # # ! #?? | | ########## ########### + ###############?? | | ?????????# ^#?????????###Y####"##???????????????? | | ?????????# ^ #???????????###T #????????????????? | | ?????????# #?????????????### ##????????????????? | | ?????????# #??????????????#! !#????????????????? | | ?????????# #??????????????#! !#????????????????? | | ?????????# #??????????????#! !#????????????????? | | ?????????# #??????????????#! !#????????????????? | | ????????? #??????????????#####????????????????? | | ????????? #???????????????????????????????????? | | ????????? #???????????????????????????????????? | | ?????????##+##???????????????????????????????????? | | ?????????????????????????????????????????????????? | | ?????????????????????????????????????????????????? | | ?????????????????????????????????????????????????? | | ?????????????????????????????????????????????????? | | ?????????????????????????????????????????????????? | | ?????????????????????????????????????????????????? | | ?????????????????????????????????????????????????? | | ?????????????????????????????????????????????????? | | ?????????????????????????????????????????????????? | | ?????????????????????????????????????????????????? | | ?????????????????????????????????????????????????? | | ?????????????????????????????????????????????????? | +----------------------------------------------------+ Best States ------------- Heat Dissipation 50 Energy Generation 14 Energy Capacity 275 Matter Stores 300 Matter Capacity 300 Sight Range 16 Terrain Scan Density 10 Evasion (%) 55 Recoil Reduction 1 Item Schematics ----------------- None Robot Schematics ------------------ None Fabricated ------------ Nothing Repaired ---------- Nothing Studied --------- None Alien Tech Used ----------------- None Achievements -------------- None Challenges ------------ None Game ------ Seed GravjetGaussCompressor Manual? 0 Play Time 00:08:45 Cumulative 52.7 hours Start 2026.09.02 @ 09:36:30 End 2026.09.02 @ 09:43:08 Sessions 1 Manual Loads 0 Difficulty Rogue Special Mode None Game No. 78 Rogue 78 Adventurer 0 Explorer 0 Win Type - Total 0 Types 0/0/0/0/0/0/0/0/0/0 Lore% 33 Gallery% 34 Achievement% 30 Wizard Run 0 Options --------- Layout 1 ASCII 0 Keyboard 0 Movement Mouse Keybinds 0 Fullscreen 2 Font 24/Smallcaps Map View 50x35 Zoom Use 0% Tactical HUD 1 Map Filters NONE Filters NONE Steam 1 RUN: 125048f7-e25e-4cdd-8e1e-c0f5ea8198f5